bitfinex/quotes_ETHUSD_20251019
["timestamp","ask_amount","ask_price","bid_price","bid_amount"]
[1760884472641,2.68769901,3995.4,3992.9,0.002]
[1760884472844,3.23823356,3992.6,3992.1,0.002]
[1760884473052,20.29359151,3992.2,3992.1,0.002]
[1760884473248,16.93899283,3992.2,3992.1,0.002]
[1760884473483,15.42147513,3992.2,3992.1,0.002]
[1760884473839,14.80081014,3992.2,3992.1,0.002]
[1760884474037,13.74978313,3992.2,3992.1,0.002]
[1760884474782,22.60925413,3992.2,3992.1,0.002]
[1760884474946,21.44285513,3992.2,3992.1,0.002]
[1760884475145,19.92266013,3992.2,3992.1,0.002]
[1760884475365,17.35681813,3992.2,3992.1,0.002]
[1760884475769,2.39964861,3992.2,3992.1,0.002]
[1760884475948,2.41748595,3992.2,3992.1,0.002]
[1760884476166,3.05108595,3992.2,3992.1,0.002]
[1760884476341,5.24064461,3992.2,3992.1,0.002]
[1760884476540,7.74552913,3992.2,3992.1,0.002]
[1760884476748,5.53813313,3992.2,3992.1,0.002]
[1760884476954,13.77505813,3992.2,3992.1,0.002]
[1760884477151,11.27017361,3992.2,3992.1,0.002]
[1760884477439,11.11209713,3992.2,3992.1,0.002]
[1760884477640,5.10842661,3992.2,3992.1,0.002]
[1760884477867,5.74202661,3992.2,3992.1,0.002]
[1760884478182,2.39964861,3992.2,3992.1,0.002]
[1760884478382,1.92844861,3992.2,3992.1,0.002]
[1760884478566,1.82799999,3992.2,3992.1,0.002]
[1760884478958,8.42578399,3992.2,3992.1,0.002]
[1760884479173,7.53148899,3992.2,3992.1,0.002]
[1760884479349,4.44885799,3992.2,3992.1,0.002]
[1760884479551,4.46669533,3992.2,3992.1,0.002]
[1760884480158,11.46667933,3992.2,3992.1,0.002]
[1760884480480,11.44884199,3992.2,3992.1,0.002]
[1760884481049,24.71241851,3992.2,3992.1,0.002]
[1760884481467,16.70016751,3992.2,3992.1,0.002]
[1760884481645,14.19528299,3992.2,3992.1,0.002]
[1760884481844,17.33376751,3992.2,3992.1,0.002]
[1760884482170,38.06888451,3992.2,3992.1,0.002]
[1760884482548,36.87024751,3992.2,3992.1,0.002]
[1760884482757,33.30541651,3992.2,3992.1,0.002]
[1760884483083,25.36288751,3992.2,3992.1,0.002]
[1760884483246,31.73864951,3992.2,3992.1,0.002]
[1760884483443,30.37545051,3992.2,3992.1,0.002]
[1760884483868,29.87447351,3992.2,3992.1,0.002]
[1760884484077,19.67259651,3992.2,3992.1,0.002]
[1760884484248,28.99190951,3992.2,3992.1,0.002]
[1760884484881,28.64252651,3992.2,3992.1,0.002]
[1760884485175,27.40502651,3992.2,3992.1,0.002]
[1760884485351,26.43883351,3992.2,3992.1,0.002]
[1760884485553,25.36448151,3992.2,3992.1,0.002]
[1760884485766,19.37274051,3992.2,3992.1,0.002]
[1760884485970,19.37274051,3992.2,3991.6,0.002]
[1760884485971,2.50519828,3991.7,3990.9,1e-08]
[1760884486171,2.50519828,3991.7,3989.0,1e-08]
[1760884486172,0.6336,3989.8,3989.0,1e-08]
[1760884486373,8.0751181,3989.1,3989.0,1e-08]
[1760884486697,8.0046881,3989.1,3989.0,1e-08]
[1760884486861,8.5916881,3989.1,3989.0,1e-08]
[1760884487782,8.4510881,3989.1,3989.0,1e-08]
[1760884488486,2.50704874,3988.8,3987.8,0.1406]
[1760884488687,0.09999999,3987.9,3987.8,0.1406]
[1760884489062,0.09999999,3987.9,3987.8,2.78884832]
[1760884489296,0.09999999,3987.9,3987.8,0.2812]
[1760884489495,0.09999999,3987.9,3987.8,2.78884832]
[1760884489661,0.09999999,3988.1,3988.0,2.50752256]
[1760884489861,4.7295111,3990.1,3988.1,2.50745969]
[1760884490066,0.095,3990.3,3988.1,2.50745969]
[1760884490067,0.09999999,3988.7,3988.6,2.50714536]
[1760884490272,0.09999999,3988.7,3988.6,2.64774536]
[1760884490476,0.09999999,3989.1,3989.0,2.50689022]
[1760884490671,0.09999999,3988.7,3988.6,0.1406]
[1760884490893,2.3616,3990.3,3989.0,2.50689395]
[1760884491089,8.54638687,3990.8,3989.7,2.50645347]
[1760884491291,0.09999999,3989.6,3989.5,0.1406]
[1760884491498,0.09999999,3989.6,3989.5,5.31217977]
[1760884491995,0.09999999,3989.6,3989.5,5.31317977]
[1760884492703,0.2297,3991.0,3990.2,2.50613698]
[1760884492911,2.95175092,3991.5,3989.5,2.8066]
[1760884492912,2.50538804,3991.4,3990.0,2.50623116]
[1760884493211,2.50540815,3991.4,3990.3,2.50603685]
[1760884493415,2.50540815,3991.4,3990.0,0.1406]
[1760884493416,0.09999999,3990.1,3990.0,2.50626566]
[1760884493707,0.09999999,3990.1,3990.0,2.666]
[1760884493898,0.09999999,3990.1,3990.0,5.17226566]
[1760884494099,0.09999999,3990.1,3990.0,2.50626566]
[1760884494510,0.09999999,3990.1,3990.0,5.17126566]
[1760884495804,0.09999999,3990.1,3990.0,2.50626566]
[1760884496110,0.09999999,3990.1,3990.0,5.16926566]
[1760884496703,0.22479999,3990.3,3990.2,2.50614004]
[1760884496906,0.1248,3990.3,3990.2,2.50614004]
[1760884497102,0.22479999,3990.3,3990.2,2.50614004]
[1760884497306,0.09999999,3990.1,3990.0,2.50621802]
[1760884497616,0.09999999,3990.1,3990.0,5.16721802]
[1760884497816,0.1248,3990.3,3989.7,0.1248]
[1760884497817,0.09999999,3989.8,3989.7,0.1248]
[1760884498012,0.09999999,3989.8,3989.7,4.19905411]
[1760884498514,0.09999999,3990.8,3990.7,2.50582604]
[1760884498724,0.09999999,3990.8,3990.7,5.30642604]
[1760884498938,0.2297,3992.0,3991.1,2.50553942]
[1760884499214,0.09999999,3991.2,3991.1,2.50553942]
[1760884499902,0.2297,3992.0,3991.3,2.50542459]
[1760884500285,0.09999999,3991.3,3991.2,2.50550326]
[1760884501019,0.2297,3992.2,3990.7,2.8006]
[1760884501222,0.09999999,3991.2,3991.1,2.5055749]
[1760884502190,0.09999999,3991.2,3990.6,0.1406]
[1760884502391,0.09999999,3990.8,3990.7,2.50582604]
[1760884502707,0.09999999,3990.8,3990.7,5.16482604]
[1760884502893,0.09999999,3990.8,3990.7,5.30542604]
[1760884503426,0.09999999,3991.2,3991.1,2.5055749]
[1760884503826,0.09999999,3990.8,3990.6,0.1406]
[1760884504003,0.09999999,3991.2,3991.1,2.5055749]
[1760884506505,0.09999999,3990.8,3990.7,2.658]
[1760884506831,0.09999999,3990.8,3990.7,2.50582604]
[1760884507332,0.09999999,3990.8,3990.7,5.16082604]
[1760884507535,0.09999999,3990.8,3990.7,2.50582604]
[1760884507703,0.09999999,3990.8,3990.6,2.50587909]
[1760884507898,0.09999999,3990.8,3990.7,2.654]
[1760884508101,0.09999999,3990.8,3990.7,5.15982604]
[1760884508644,0.22479999,3990.8,3990.7,2.50582604]
[1760884508805,0.22479999,3990.8,3990.7,5.15982604]
[1760884510640,0.22479999,3990.8,3990.7,2.651]
[1760884510844,0.22479999,3990.8,3990.6,2.50588528]
[1760884511058,0.01783734,3990.7,3990.1,0.1248]
[1760884511266,0.01783734,3990.7,3989.9,2.50629807]
[1760884511267,0.09999999,3990.6,3989.9,2.50629807]
[1760884511422,0.09999999,3990.1,3990.0,2.65]
[1760884511616,0.09999999,3989.9,3989.8,2.50637874]
[1760884511817,0.09999999,3989.9,3989.8,5.15637874]
[1760884512012,0.09999999,3990.1,3990.0,2.50626566]
[1760884512647,0.09999999,3990.3,3990.2,2.50614004]
[1760884512960,0.09999999,3989.9,3989.5,0.1406]
[1760884513134,0.01783734,3990.8,3989.6,5.15551694]
[1760884513333,0.09999999,3989.9,3989.8,2.50639129]
[1760884513643,0.09999999,3989.9,3989.8,5.15639129]
[1760884513813,0.09999999,3990.3,3989.8,5.15539129]
[1760884514017,0.09999999,3990.3,3990.2,2.50614004]
[1760884514339,0.09999999,3990.7,3990.6,2.50583778]
[1760884514646,0.09999999,3990.7,3989.5,0.1406]
[1760884514647,0.52909999,3990.7,3990.1,2.50619315]
[1760884514852,0.09999999,3990.4,3990.3,2.50607723]
[1760884515049,0.09999999,3990.4,3990.1,2.50619315]
[1760884515050,0.09999999,3989.9,3989.5,0.1406]
[1760884515214,0.09999999,3990.2,3989.8,2.50635019]
[1760884515420,0.2172,3990.9,3989.6,2.7886]
[1760884515642,0.09999999,3990.2,3990.1,2.50620285]
[1760884515900,0.09999999,3990.5,3990.4,2.50600222]
[1760884516303,0.001,3991.2,3990.1,2.648]
[1760884516787,0.09999999,3991.1,3991.0,2.50562491]
[1760884517765,0.09999999,3991.1,3990.9,2.50568975]
[1760884517970,0.001,3991.2,3990.9,2.50568975]
[1760884518170,0.09999999,3991.1,3991.0,2.50561761]
[1760884518367,0.09999999,3991.1,3991.0,2.50563768]
[1760884519159,0.001,3991.2,3991.0,2.50563768]
[1760884519387,0.10099999,3991.2,3991.1,5.1515749]
[1760884519607,0.001,3991.2,3991.1,5.1515749]
[1760884520916,0.10099999,3991.2,3991.1,5.2921749]
[1760884521082,0.10099999,3991.2,3991.1,5.1515749]
[1760884521287,0.10099999,3991.2,3991.1,2.5055749]
[1760884521603,0.10099999,3991.2,3991.1,5.1495749]
[1760884521604,0.001,3991.2,3991.1,5.1495749]
[1760884521808,0.10099999,3991.2,3991.1,5.2901749]
[1760884521989,0.10099999,3991.2,3991.1,5.1495749]
[1760884522186,0.10099999,3991.2,3991.1,5.2901749]
[1760884522815,0.10099999,3991.2,3991.1,5.1485749]
[1760884523489,0.001,3991.2,3991.1,5.1485749]
[1760884523684,0.10099999,3991.2,3991.1,5.1485749]
[1760884524619,0.10099999,3991.2,3991.1,5.2891749]
[1760884524802,0.001,3991.2,3991.1,5.4139749]
[1760884524996,0.001,3991.2,3991.1,5.2733749]
[1760884525699,0.001,3991.2,3991.1,5.4139749]
[1760884526097,0.001,3991.2,3991.1,5.9227749]
[1760884527286,0.001,3991.2,3991.1,5.9207749]
[1760884527926,0.001,3991.2,3991.1,5.1455749]
[1760884528228,0.001,3991.2,3991.1,5.2861749]
[1760884528524,0.001,3991.2,3991.1,5.9197749]
[1760884528704,0.001,3991.2,3991.1,7.6477749]
[1760884531725,0.001,3991.2,3991.1,5.0077749]
[1760884531925,0.001,3991.2,3991.1,7.6477749]
[1760884532426,0.001,3992.0,3991.9,3.13867277]
[1760884532427,1e-08,3992.0,3991.9,3.13867277]
[1760884532730,1e-08,3992.0,3991.9,5.77867277]
[1760884532935,1e-08,3992.0,3991.9,7.50667277]
[1760884533698,1e-08,3992.0,3991.9,4.86667277]
[1760884534232,1e-08,3992.0,3991.9,7.50667277]
[1760884535126,1e-08,3992.0,3991.9,7.50567277]
[1760884535715,1e-08,3992.0,3991.9,4.86667277]
[1760884535914,1e-08,3992.0,3991.9,7.50567277]
[1760884536229,1e-08,3992.0,3991.9,7.63047277]
[1760884538800,1e-08,3992.0,3991.9,4.99147277]
[1760884539002,1e-08,3992.0,3991.9,7.65552349]
[1760884539231,1e-08,3992.0,3991.9,8.98207277]
[1760884539423,1e-08,3992.0,3991.9,11.62107277]
[1760884539813,1e-08,3992.0,3991.9,11.48047277]
[1760884540021,1e-08,3992.0,3991.9,11.62107277]
[1760884541008,1e-08,3992.0,3991.9,8.98207277]
[1760884541208,1e-08,3992.0,3991.9,11.62107277]
[1760884541404,1e-08,3992.0,3991.8,3.85]
[1760884541608,1e-08,3992.0,3987.8,10.252]
[1760884541609,0.09999999,3991.1,3987.8,0.002]
[1760884541809,2.641,3991.6,3987.8,0.002]
[1760884541810,0.96089999,3988.7,3988.6,0.053]
[1760884542006,2.7644671,3988.7,3988.6,0.053]
[1760884542243,5.64128249,3988.7,3988.6,0.053]
[1760884542403,8.29076299,3988.7,3988.6,0.053]
[1760884542601,0.09999999,3988.3,3987.8,0.002]
[1760884543035,0.54529999,3988.3,3988.2,2.696]
[1760884543238,4.78063394,3988.3,3988.2,0.002]
[1760884543435,4.78063394,3988.3,3988.2,2.695]
[1760884543747,2.27329999,3988.3,3988.2,2.695]
[1760884545019,0.2273,3988.7,3988.2,2.694]
[1760884545219,0.2273,3988.7,3988.2,5.20139682]
[1760884545220,0.09999999,3988.6,3988.2,5.20139682]
[1760884545424,0.09999999,3988.6,3988.3,2.50731959]
[1760884546045,0.09999999,3988.4,3988.3,2.50731959]
[1760884546262,0.09999999,3988.6,3988.2,2.694]
[1760884546412,0.2273,3988.7,3988.2,2.694]
[1760884546413,0.09999999,3988.3,3988.2,2.694]
[1760884546613,0.09999999,3988.3,3988.2,5.2013713]
[1760884546865,0.09999999,3988.3,3988.2,2.692]
[1760884547522,0.09999999,3988.3,3988.2,2.691]
[1760884547726,0.09999999,3988.3,3988.2,0.002]
[1760884547919,0.09999999,3988.3,3988.2,2.69]
[1760884548133,0.4453,3988.6,3988.2,2.69]
[1760884548335,0.09999999,3988.3,3988.2,2.69]
[1760884548539,0.09999999,3988.3,3988.2,5.19739682]
[1760884549046,0.32729999,3988.7,3988.2,0.002]
[1760884549253,0.09999999,3988.3,3988.2,0.002]
[1760884549463,0.09999999,3988.3,3988.2,2.69]
[1760884549679,0.09999999,3988.3,3988.2,5.19739682]
[1760884550249,0.09999999,3988.3,3988.2,2.50939682]
[1760884550453,0.09999999,3988.3,3988.2,5.19539682]
[1760884550634,0.32729999,3988.7,3988.3,2.50731848]
[1760884551031,0.09999999,3988.3,3988.2,5.19539195]
[1760884551580,0.09999999,3988.3,3988.2,5.32019195]
[1760884552064,0.09999999,3988.3,3988.2,5.31819195]
[1760884552659,0.09999999,3988.6,3988.3,2.50730396]
[1760884552865,0.09999999,3988.4,3988.3,2.50730396]
[1760884553384,0.2273,3988.7,3988.2,5.31618987]
[1760884553385,0.32729999,3988.7,3988.2,5.31618987]
[1760884553678,0.09999999,3987.9,3987.8,0.002]
[1760884554172,0.32729999,3987.9,3987.8,2.683]
[1760884554873,0.32729999,3987.9,3987.8,0.002]
[1760884555071,0.09999999,3987.9,3987.8,2.682]
[1760884555372,0.09999999,3987.9,3987.8,5.18964832]
[1760884555538,0.09999999,3987.9,3987.8,2.50964832]
[1760884555744,0.09999999,3987.9,3987.8,5.18864832]
[1760884555959,0.09999999,3988.1,3987.9,2.50755738]
[1760884556168,0.09999999,3988.1,3987.8,2.681]
[1760884556355,0.09999999,3988.0,3987.8,2.681]
[1760884556557,0.09999999,3988.0,3987.9,2.50756398]
[1760884557754,0.09999999,3988.0,3987.9,6.31356398]
[1760884557952,0.4453,3990.7,3987.9,8.04156398]
[1760884558175,0.2273,3989.7,3988.1,0.6336]
[1760884558378,0.6726,3989.7,3988.2,0.6278]
[1760884558677,0.6726,3989.7,3989.1,2.50680818]
[1760884558889,0.6726,3989.7,3989.2,2.68]
[1760884559384,0.2273,3989.7,3989.3,2.679]
[1760884559673,0.6726,3989.7,3989.5,2.50656505]
[1760884560186,0.2273,3989.7,3989.6,2.50651694]
[1760884560875,0.2273,3989.7,3989.5,2.50654043]
[1760884561182,0.2273,3990.0,3989.7,2.50640002]
[1760884561372,0.6726,3990.0,3989.8,2.677]
[1760884561577,2.54877338,3991.9,3989.8,2.677]
[1760884561578,0.2273,3990.4,3989.8,2.677]
[1760884561897,0.2273,3990.4,3990.0,2.50623984]
[1760884562095,0.2273,3990.4,3990.1,2.677]
[1760884562384,0.4453,3990.3,3990.1,2.677]
[1760884562550,0.001,3988.7,3988.6,2.50714536]
[1760884562883,0.001,3988.7,3988.6,5.18414536]
[1760884563085,0.001,3988.7,3988.6,2.677]
[1760884563291,0.001,3988.7,3988.6,5.65364536]
[1760884563782,0.001,3988.7,3988.6,5.77844536]
[1760884564081,0.001,3988.7,3988.6,5.65364536]
[1760884564270,0.001,3988.7,3988.6,5.77844536]
[1760884564993,0.001,3988.7,3988.6,6.41204536]
[1760884565210,0.001,3988.7,3988.6,7.53804536]
[1760884565916,0.001,3988.7,3988.6,7.53704536]
[1760884566872,0.001,3988.7,3988.6,3.73504536]
[1760884567164,0.001,3988.7,3988.6,2.63194536]
[1760884568069,0.001,3988.7,3988.6,5.30294536]
[1760884568797,0.001,3988.7,3988.6,2.63194536]
[1760884568987,0.001,3988.7,3988.6,5.30094536]
[1760884570216,0.001,3988.7,3988.6,2.63194536]
[1760884571180,0.001,3988.7,3988.6,5.29894536]
[1760884571385,0.001,3988.7,3988.6,2.63194536]
[1760884571583,0.001,3988.7,3988.6,5.29894536]
[1760884571982,0.001,3988.7,3988.6,2.63194536]
[1760884572215,0.001,3988.7,3988.6,5.29894536]
[1760884572906,0.001,3988.7,3987.8,0.002]
[1760884573238,0.4492,3988.7,3988.4,2.50721516]
[1760884573411,0.001,3988.7,3988.6,2.50714536]
[1760884573811,0.001,3988.7,3988.6,5.17214536]
[1760884575308,0.001,3988.7,3988.6,5.60404536]
[1760884575955,0.001,3988.7,3988.6,6.73104536]
[1760884576112,0.001,3988.7,3988.6,7.36464536]
[1760884577339,0.001,3988.7,3988.6,11.98394536]
[1760884577836,0.001,3988.7,3988.6,9.34294536]
[1760884578210,0.001,3988.7,3988.6,11.73364536]
[1760884578606,0.001,3989.1,3989.0,3.14049395]
[1760884578807,0.001,3989.1,3989.0,7.53049395]
[1760884579003,0.001,3989.1,3989.0,7.96239395]
[1760884580923,0.001,3989.1,3989.0,8.45885199]
[1760884582958,0.001,3989.1,3989.0,8.58365199]
[1760884583468,0.001,3989.1,3989.0,8.08719395]
[1760884583662,0.001,3989.1,3989.0,11.93719395]
[1760884584361,0.2275,3991.5,3990.8,2.50576325]
[1760884584362,0.4482,3991.3,3990.8,2.50576325]
[1760884584529,0.2275,3991.5,3991.4,2.50538658]
[1760884584851,0.2275,3991.5,3991.4,5.01018658]
[1760884585056,0.2275,3991.5,3991.4,2.0236593]
[1760884585227,0.6757,3991.5,3991.4,0.1248]
[1760884585553,0.6757,3991.5,3991.4,5.28418658]
[1760884586125,0.6757,3991.5,3990.6,2.50586385]
[1760884586331,0.2275,3990.7,3990.6,2.50586385]
[1760884586732,0.2275,3990.7,3990.6,6.28686385]
[1760884587153,0.4482,3991.0,3990.9,2.50570046]
[1760884587366,0.2275,3991.5,3991.4,2.50538658]
[1760884587555,0.2275,3991.5,3991.4,5.15738658]
[1760884588072,0.6757,3991.5,3991.4,5.15738658]
[1760884588568,0.6757,3991.5,3991.4,2.50538658]
[1760884588868,0.6757,3991.5,3991.4,5.15638658]
[1760884589441,0.6757,3991.5,3991.4,5.15538658]
[1760884589981,0.2275,3992.1,3991.8,2.50507688]
[1760884590162,0.2275,3992.1,3991.9,5.15407277]
[1760884590537,0.44820001,3992.0,3991.9,5.15407277]
[1760884591012,0.44820001,3992.0,3991.9,2.649]
[1760884592677,1e-08,3992.0,3991.9,5.17381098]
[1760884592842,1e-08,3992.0,3991.9,5.15407277]
[1760884593699,1e-08,3992.0,3991.9,6.21957277]
[1760884593974,1e-08,3992.0,3991.9,8.19387277]
[1760884595088,1e-08,3992.0,3991.9,5.54887277]
[1760884595307,1e-08,3992.0,3991.9,8.88897277]
[1760884595465,1e-08,3992.0,3991.9,9.32567277]
[1760884595781,1e-08,3992.0,3991.9,9.07537277]
[1760884595991,1e-08,3992.0,3991.9,8.63867277]
[1760884596291,1e-08,3992.0,3991.9,8.76347277]
[1760884596681,1e-08,3992.0,3991.9,4.99147277]
[1760884596861,1e-08,3992.0,3991.9,8.76347277]
[1760884597795,1e-08,3992.0,3991.9,4.99147277]
[1760884597966,1e-08,3992.0,3991.9,8.76347277]
[1760884599468,1e-08,3992.0,3991.9,4.99147277]
[1760884599669,1e-08,3992.0,3991.9,8.76347277]
[1760884600568,1e-08,3992.0,3991.9,4.35787277]
[1760884600768,1e-08,3992.0,3991.9,8.76347277]
[1760884601007,0.44700001,3992.0,3991.9,4.35787277]
[1760884601495,0.44700001,3992.0,3991.9,8.12987277]
[1760884601701,0.44700001,3992.0,3991.9,2.62987277]
[1760884602174,1e-08,3992.0,3991.9,7.94737277]
[1760884602398,1e-08,3992.0,3991.9,7.51067277]
[1760884603221,1e-08,3992.0,3991.9,7.94737277]
[1760884603429,1e-08,3992.0,3991.9,8.19667277]
[1760884604896,1e-08,3992.0,3991.9,7.75997277]
[1760884605223,1e-08,3992.0,3991.9,7.50967277]
[1760884605533,1e-08,3992.0,3991.9,4.86667277]
[1760884605890,1e-08,3992.0,3991.9,9.07437277]
[1760884606093,1e-08,3992.0,3991.9,6.43137277]
[1760884606401,1e-08,3992.0,3991.9,9.07437277]
[1760884606614,1e-08,3992.0,3991.9,9.32467277]
[1760884607827,1e-08,3992.0,3991.9,8.88797277]
[1760884608326,1e-08,3992.0,3991.9,4.86667277]
[1760884609118,1e-08,3992.0,3991.9,8.63767277]
[1760884609518,1e-08,3992.0,3991.9,4.86667277]
[1760884609696,0.44700001,3992.0,3991.9,11.85407277]
[1760884609925,0.44700001,3992.0,3991.9,10.72607277]
[1760884610246,1e-08,3992.0,3991.9,8.71667277]
[1760884610547,1e-08,3992.0,3991.9,9.40427277]
[1760884610928,1e-08,3992.0,3991.9,13.17527277]
[1760884611131,1e-08,3992.0,3991.9,12.92437277]
[1760884611336,1e-08,3992.0,3991.9,12.48767277]
[1760884612123,1e-08,3992.0,3991.9,12.61247277]
[1760884614340,1e-08,3992.0,3991.9,8.84147277]
[1760884614544,1e-08,3992.0,3991.9,12.61247277]
[1760884616247,1e-08,3992.0,3991.9,9.96947277]
[1760884616457,1e-08,3992.0,3991.9,13.30007277]
[1760884616823,1e-08,3992.0,3991.9,12.86337277]
[1760884617025,1e-08,3992.0,3991.9,12.86237277]
[1760884617215,1e-08,3992.0,3991.9,9.09237277]
[1760884617422,1e-08,3992.0,3991.9,10.22037277]
[1760884617621,1e-08,3992.0,3991.9,12.86237277]
[1760884617828,1e-08,3992.0,3991.9,9.09237277]
[1760884618145,1e-08,3992.0,3991.9,10.22037277]
[1760884618541,1e-08,3992.0,3991.9,12.86237277]
[1760884620053,1e-08,3992.0,3991.9,9.01237277]
[1760884621129,1e-08,3992.0,3991.9,5.24237277]
[1760884621337,1e-08,3992.0,3991.9,5.67907277]
[1760884621546,1e-08,3992.0,3991.9,9.44907277]
[1760884622463,1e-08,3992.0,3991.9,5.24237277]
[1760884622618,1e-08,3992.0,3991.9,9.01237277]
[1760884622824,1e-08,3992.0,3991.9,9.44907277]
[1760884623357,1e-08,3992.0,3991.9,9.32427277]
[1760884625082,1e-08,3992.0,3991.9,13.17427277]
[1760884625588,1e-08,3992.0,3991.9,9.32959019]
[1760884625885,0.46570001,3992.0,3991.9,6.27507277]
[1760884626044,0.46570001,3992.0,3991.9,5.36107277]
[1760884626045,1e-08,3992.0,3991.9,5.36107277]
[1760884626251,1e-08,3992.0,3991.9,8.63667277]
[1760884628155,1e-08,3992.0,3991.9,8.88657277]
[1760884628859,1e-08,3992.0,3991.9,9.31687277]
[1760884629256,1e-08,3992.0,3991.9,8.88657277]
[1760884629877,1e-08,3992.0,3991.9,8.88157277]
[1760884630575,1e-08,3992.0,3991.9,6.24057277]
[1760884630884,1e-08,3992.0,3991.9,8.88157277]
[1760884631174,1e-08,3992.0,3991.9,12.73157277]
[1760884633254,1e-08,3992.0,3991.9,12.85637277]
[1760884634277,1e-08,3992.0,3991.9,10.21537277]
[1760884634469,1e-08,3992.0,3991.9,12.85637277]
[1760884636485,1e-08,3992.0,3991.9,13.30037277]
[1760884636671,0.4327,3993.2,3992.8,2.50450811]
[1760884636989,0.4327,3993.2,3992.8,6.87350811]
[1760884637290,0.6601,3992.9,3992.8,4.23250811]
[1760884637795,0.6601,3992.9,3992.8,8.00150811]
[1760884638584,0.6601,3992.9,3992.8,5.36050811]
[1760884638756,0.6601,3992.9,3992.8,8.00150811]
[1760884639173,0.001,3992.9,3992.8,8.63510811]
[1760884639386,0.001,3992.9,3992.8,12.48510811]
[1760884639557,0.2189,3992.9,3992.4,0.2509]
[1760884639901,0.001,3992.9,3992.8,2.50450811]
[1760884640978,0.001,3992.9,3992.8,5.14450811]
[1760884641181,0.6516,3992.9,3992.8,5.14450811]
[1760884642199,0.2189,3992.9,3992.8,5.14450811]
[1760884642404,0.001,3992.9,3992.8,5.14450811]
[1760884643520,0.001,3992.9,3992.8,6.87250811]
[1760884643677,0.001,3992.9,3992.8,7.50610811]
[1760884644078,0.001,3992.9,3992.8,8.20100811]
[1760884644502,0.001,3992.9,3992.8,7.75700811]
[1760884644917,0.001,3992.9,3992.8,5.11700811]
[1760884645071,0.001,3992.9,3992.8,7.75700811]
[1760884646809,0.001,3992.9,3992.8,7.88180811]
[1760884647005,0.001,3992.9,3992.8,9.09180811]
[1760884647209,0.001,3992.9,3992.8,11.73080811]
[1760884647627,0.001,3992.9,3992.8,12.17480811]
[1760884648204,0.001,3992.9,3992.8,11.92390811]
[1760884648804,0.001,3992.9,3992.8,11.79910811]
[1760884650020,0.001,3992.9,3992.8,14.44010811]
[1760884650207,0.001,3992.9,3992.8,14.93905282]
[1760884651502,0.001,3992.9,3992.8,15.19195282]
[1760884652445,2.50275602,3995.6,3992.8,15.19195282]
[1760884652446,0.001,3993.7,3993.3,2.8919]
[1760884652732,0.001,3993.7,3993.6,7.97380641]
[1760884652927,0.2179,3995.1,3995.0,3.13672891]
[1760884653127,0.2179,3995.1,3995.0,7.50272891]
[1760884653297,0.2134,3995.2,3995.1,3.13666625]
[1760884653497,0.001,3996.4,3995.9,2.50256512]
[1760884653702,0.001,3996.4,3995.9,5.14056512]
[1760884654098,0.22,3996.0,3995.9,5.14056512]
[1760884655117,0.22,3996.0,3995.9,2.50256512]
[1760884655316,0.22,3996.0,3995.9,5.14056512]
[1760884657445,0.22,3996.0,3995.9,2.50256512]
[1760884657649,0.22,3996.0,3995.9,5.13956512]
[1760884658241,0.4357,3996.0,3994.0,3.85]
[1760884658439,0.099,3995.9,3994.3,1.728]
[1760884658664,0.2179,3996.0,3995.7,2.50263857]
[1760884658955,0.2179,3996.0,3995.9,2.50256512]
[1760884659255,0.3169,3996.0,3995.9,5.13956512]
[1760884661221,0.2179,3996.0,3995.9,5.13956512]
[1760884661753,0.001,3996.4,3996.3,2.50231464]
[1760884661954,0.001,3996.4,3996.3,5.13931464]
[1760884662155,0.1012,3996.4,3996.3,5.26411464]
[1760884662539,0.001,3996.4,3996.3,5.26411464]
[1760884663160,0.001,3996.4,3996.3,7.34191464]
[1760884663347,0.001,3996.4,3996.3,6.99211464]
[1760884663768,0.001,3996.4,3996.3,4.35511464]
[1760884663969,0.001,3996.4,3996.3,8.11811464]
[1760884664340,0.001,3996.4,3996.3,4.35511464]
[1760884664537,0.001,3996.4,3996.3,8.11811464]
[1760884665287,0.1034,3996.4,3996.3,4.35511464]
[1760884665443,0.1034,3996.4,3996.3,8.11811464]
[1760884665642,0.1034,3996.4,3996.3,4.35511464]
[1760884665896,0.1034,3996.4,3996.3,8.11811464]
[1760884666038,0.1034,3996.4,3996.3,6.39011464]
[1760884666235,0.001,3996.4,3996.3,6.39011464]
[1760884667247,0.1034,3996.4,3996.3,2.62711464]
[1760884667557,0.1034,3996.4,3996.3,6.39011464]
[1760884667759,0.1034,3996.4,3996.3,2.62711464]
[1760884667940,0.1034,3996.4,3996.3,6.38911464]
[1760884668568,0.001,3996.4,3996.3,6.38911464]
[1760884669370,0.1034,3996.4,3996.3,6.38911464]
[1760884669576,0.001,3996.4,3996.3,6.38911464]
[1760884669984,0.001,3996.4,3996.3,8.75071464]
[1760884670156,0.001,3996.4,3996.3,9.10051464]
[1760884671282,0.001,3996.4,3996.3,4.86391464]
[1760884671465,0.001,3996.4,3996.3,8.62591464]
[1760884672767,0.001,3996.4,3996.3,9.10051464]
[1760884673260,0.001,3996.4,3996.3,9.35141464]
[1760884674155,0.001,3996.4,3996.3,5.11481464]
[1760884674390,0.001,3996.4,3996.3,8.24221464]
[1760884674872,0.001,3996.4,3996.3,4.48121464]
[1760884675074,0.001,3996.4,3996.3,8.24221464]
[1760884675273,0.001,3996.4,3996.3,4.48121464]
[1760884675675,0.001,3996.4,3996.3,8.24221464]
[1760884677286,0.001,3996.4,3996.3,2.75321464]
[1760884677501,0.1034,3996.4,3996.3,6.26331464]
[1760884678212,0.1034,3996.4,3996.3,5.13631464]
[1760884678405,0.1034,3996.4,3996.3,2.50231464]
[1760884678909,0.1034,3996.4,3995.5,1.127]
[1760884679205,0.1024,3996.3,3995.9,2.50251756]
[1760884679410,0.1024,3996.2,3995.2,2.5030036]
[1760884679614,0.1024,3996.1,3995.7,2.5026866]
[1760884679913,0.4514,3996.0,3995.9,2.50256512]
[1760884680103,0.4514,3996.0,3995.9,2.62736512]
[1760884680491,0.4514,3996.0,3995.9,5.26036512]
[1760884681303,0.4477,3996.0,3995.9,2.7578]